bitfinex/quotes_SOLUSD_20251106
["timestamp","ask_amount","ask_price","bid_price","bid_amount"]
[1762464296453,5.1766748,155.36,155.34,8.26]
[1762464296655,20.592,155.38,155.34,7.54]
[1762464296839,5.1766748,155.37,155.35,0.72]
[1762464297038,5.1766748,155.38,155.35,0.72]
[1762464297562,0.1,155.42,155.37,11.61258669]
[1762464297743,5.2766748,155.42,155.38,7.54]
[1762464298059,5.2766748,155.42,155.38,8.26]
[1762464298256,0.1,155.42,155.39,0.72]
[1762464298444,8.22944167,155.42,155.39,0.72]
[1762464298834,8.12944167,155.41,155.39,0.72]
[1762464300543,8.12944167,155.4,155.39,0.72]
[1762464300739,8.12944167,155.4,155.37,8.26]
[1762464300947,8.12944167,155.39,155.37,0.72]
[1762464301151,8.12944167,155.38,155.37,0.72]
[1762464301333,8.12944167,155.38,155.35,0.72]
[1762464301540,8.12944167,155.36,155.32,0.72]
[1762464301741,8.12944167,155.35,155.32,0.72]
[1762464302047,8.12944167,155.34,155.33,7.54]
[1762464302454,8.12944167,155.34,155.33,8.26]
[1762464302839,8.12944167,155.35,155.33,8.26]
[1762464303060,8.12944167,155.35,155.34,0.72]
[1762464303279,28.72144167,155.37,155.34,0.72]
[1762464303451,17.32882769,155.4,155.34,0.72]
[1762464303452,8.12944167,155.39,155.34,0.72]
[1762464303640,8.12944167,155.38,155.34,0.72]
[1762464304547,8.12944167,155.35,155.32,0.72]
[1762464304745,8.12944167,155.33,155.29,0.72]
[1762464304958,8.12944167,155.31,155.29,0.72]
[1762464306865,8.12944167,155.3,155.29,0.72]
[1762464307550,0.71,155.35,155.29,0.72]
[1762464307755,8.12944167,155.31,155.29,0.72]
[1762464308770,8.12944167,155.3,155.29,0.72]
[1762464308971,8.12944167,155.3,155.26,0.72]
[1762464309280,8.12944167,155.28,155.26,8.26]
[1762464309972,8.12944167,155.29,155.26,7.54]
[1762464310177,0.71,155.27,155.24,6.44163875]
[1762464310382,0.71,155.27,155.25,7.54]
[1762464310757,8.83944167,155.27,155.25,7.54]
[1762464311646,8.83944167,155.27,155.25,13.98108997]
[1762464311854,0.71,155.27,155.25,13.98108997]
[1762464312170,0.71,155.32,155.26,16.38944167]
[1762464312487,0.71,155.32,155.28,8.12944167]
[1762464312665,0.71,155.32,155.29,7.54]
[1762464313387,0.71,155.32,155.29,13.97946009]
[1762464314170,0.71,155.32,155.29,7.54]
[1762464314573,0.71,155.32,155.29,13.97949744]
[1762464315261,20.592,155.3,155.29,13.97949744]
[1762464316975,0.71,155.3,155.26,6.44080896]
[1762464317167,0.71,155.3,155.27,7.54]
[1762464317367,20.592,155.3,155.29,8.12944167]
[1762464318056,20.592,155.31,155.29,8.12944167]
[1762464318257,20.592,155.31,155.3,15.66944167]
[1762464318453,0.71,155.36,155.3,16.38944167]
[1762464318658,0.71,155.36,155.33,8.12944167]
[1762464318878,0.71,155.39,155.35,8.12944167]
[1762464319181,21.302,155.39,155.36,8.12944167]
[1762464319374,0.71,155.39,155.38,6.43583472]
[1762464319577,0.71,155.39,155.37,7.54]
[1762464319578,20.592,155.38,155.37,13.97610516]
[1762464320084,20.592,155.38,155.37,7.54]
[1762464320463,20.592,155.37,155.36,6.4366479]
[1762464320788,0.71,155.39,155.36,13.9766479]
[1762464321162,20.592,155.37,155.36,7.54]
[1762464322883,20.592,155.37,155.36,15.66944167]
[1762464323085,20.592,155.38,155.36,15.66944167]
[1762464323297,20.592,155.37,155.36,7.54]
[1762464323488,20.592,155.37,155.36,13.97666323]
[1762464323786,20.592,155.37,155.36,7.54]
[1762464325611,8.82944167,155.37,155.36,7.54]
[1762464325776,8.82944167,155.37,155.33,6.43776095]
[1762464325976,8.82944167,155.37,155.31,16.80647004]
[1762464325977,21.292,155.36,155.31,21.00573222]
[1762464326200,20.592,155.35,155.32,16.37944167]
[1762464326363,20.592,155.35,155.33,8.12944167]
[1762464326896,20.592,155.37,155.34,8.83944167]
[1762464327098,20.592,155.37,155.35,15.66944167]
[1762464327498,20.592,155.36,155.35,7.54]
[1762464329487,21.292,155.36,155.35,7.54]
[1762464329687,20.592,155.36,155.35,13.97707756]
[1762464329891,20.592,155.36,155.35,7.54]
[1762464331683,21.292,155.36,155.35,7.54]
[1762464332392,0.7,155.36,155.35,7.54]
[1762464332895,29.42144167,155.38,155.35,7.54]
[1762464333096,0.7,155.37,155.35,7.54]
[1762464333497,0.7,155.37,155.33,6.43778213]
[1762464333695,0.7,155.37,155.34,7.54]
[1762464334386,0.7,155.37,155.35,7.54]
[1762464335106,28.72144167,155.36,155.29,24.93832783]
[1762464335299,8.12944167,155.34,155.3,7.54]
[1762464335506,8.12944167,155.32,155.29,8.83944167]
[1762464335681,8.12944167,155.3,155.25,8.83944167]
[1762464335883,8.12944167,155.29,155.26,7.54]
[1762464336082,8.12944167,155.3,155.26,7.54]
[1762464336283,0.7,155.31,155.26,7.54]
[1762464336483,0.7,155.31,155.26,8.25]
[1762464336685,3.45358505,155.3,155.26,7.54]
[1762464337221,4.15358505,155.3,155.26,8.25]
[1762464337396,20.592,155.33,155.26,7.54]
[1762464337397,3.45358505,155.31,155.26,7.54]
[1762464337586,3.45358505,155.34,155.3,9.78882769]
[1762464337785,3.45358505,155.36,155.31,18.10232048]
[1762464338005,4.17358505,155.36,155.31,18.10232048]
[1762464338388,20.592,155.33,155.31,22.78284522]
[1762464338586,8.85410979,155.36,155.31,22.78284522]
[1762464338786,8.85410979,155.36,155.31,22.11284522]
[1762464338787,29.44610979,155.36,155.31,22.11284522]
[1762464339112,29.44610979,155.36,155.32,0.67]
[1762464339484,29.44610979,155.36,155.31,22.11284522]
[1762464339688,29.44610979,155.36,155.31,22.78284522]
[1762464339888,0.72,155.35,155.31,22.78284522]
[1762464340191,8.85410979,155.35,155.31,7.54]
[1762464340405,8.85410979,155.35,155.29,14.57329626]
[1762464340406,8.13410979,155.34,155.29,14.57329626]
[1762464340594,8.13410979,155.32,155.28,6.43997429]
[1762464340800,8.13410979,155.31,155.29,7.54]
[1762464341001,8.13410979,155.3,155.26,6.44069608]
[1762464341404,8.85410979,155.29,155.27,7.54]
[1762464341604,8.13410979,155.28,155.22,8.13410979]
[1762464341832,8.13410979,155.26,155.21,7.11275017]
[1762464342120,8.13410979,155.26,155.23,7.54]
[1762464342314,8.13410979,155.25,155.23,7.54]
[1762464342693,8.85410979,155.26,155.23,7.54]
[1762464343108,8.13410979,155.25,155.23,7.54]
[1762464343312,8.85410979,155.25,155.23,7.54]
[1762464344214,0.72,155.25,155.23,7.54]
[1762464345301,8.13410979,155.26,155.23,7.54]
[1762464345504,8.13410979,155.27,155.23,7.54]
[1762464345698,8.85410979,155.27,155.23,7.54]
[1762464346123,8.13410979,155.26,155.23,7.54]
[1762464346528,0.72,155.25,155.23,7.54]
[1762464347116,8.85410979,155.25,155.23,7.54]
[1762464347293,8.13410979,155.25,155.23,7.54]
[1762464348109,8.13410979,155.25,155.21,0.67]
[1762464348110,8.13410979,155.24,155.21,0.67]
[1762464348424,28.72610979,155.22,155.2,7.74]
[1762464348601,8.13410979,155.21,155.2,7.74]
[1762464348800,8.85410979,155.21,155.2,7.74]
[1762464349200,16.39410979,155.21,155.2,0.2]
[1762464350196,22.83699362,155.21,155.2,0.2]
[1762464350400,9.78882769,155.2,155.19,0.2]
[1762464350605,18.64293748,155.2,155.19,0.2]
[1762464350825,30.38082769,155.18,155.17,0.2]
[1762464351008,46.05493748,155.18,155.14,0.2]
[1762464351197,8.13410979,155.15,155.14,0.2]
[1762464351620,8.85410979,155.15,155.14,0.2]
[1762464353196,28.72610979,155.15,155.14,0.2]
[1762464353410,29.44610979,155.15,155.14,0.2]
[1762464355721,36.98610979,155.15,155.14,0.2]
[1762464358508,29.44610979,155.15,155.14,0.2]
[1762464359552,8.13410979,155.15,155.14,0.2]
[1762464359707,8.13410979,155.15,155.14,0.88]
[1762464359905,8.85410979,155.15,155.14,0.2]
[1762464360336,5.91206132,155.15,155.14,0.2]
[1762464360717,5.19206132,155.15,155.14,0.2]
[1762464360918,5.19206132,155.15,155.14,0.88]
[1762464361724,5.19206132,155.15,155.14,0.2]
[1762464362123,13.45206132,155.15,155.13,0.1]
[1762464362320,5.91206132,155.14,155.13,0.1]
[1762464362630,5.91206132,155.14,155.1,0.2]
[1762464362631,20.592,155.12,155.1,0.2]
[1762464362805,5.19206132,155.11,155.1,0.2]
[1762464363009,5.91206132,155.11,155.1,0.2]
[1762464363321,20.592,155.09,155.07,0.2]
[1762464363511,5.19206132,155.09,155.07,0.2]
[1762464364136,5.91206132,155.09,155.07,0.2]
[1762464364508,26.50406132,155.09,155.07,0.2]
[1762464364719,26.50406132,155.09,155.04,0.2]
[1762464364720,20.592,155.06,155.04,0.2]
[1762464364926,20.592,155.06,155.05,0.68]
[1762464366029,25.78406132,155.06,155.05,0.68]
[1762464367460,25.78406132,155.06,155.04,0.2]
[1762464367633,5.19206132,155.05,155.04,0.2]
[1762464368834,5.19206132,155.05,155.04,0.88]
[1762464369154,20.592,155.06,155.04,0.88]
[1762464369155,25.78406132,155.06,155.04,0.88]
[1762464369355,25.78406132,155.06,155.05,0.68]
[1762464370742,5.19206132,155.08,155.05,0.68]
[1762464370942,5.19206132,155.08,155.06,7.54]
[1762464371449,5.19206132,155.1,155.07,0.68]
[1762464371862,20.592,155.13,155.07,0.68]
[1762464372155,5.19206132,155.09,155.07,0.68]
[1762464372952,5.19206132,155.1,155.07,0.68]
[1762464373848,5.19206132,155.11,155.07,7.12865762]
[1762464374366,5.19206132,155.11,155.08,0.68]
[1762464375064,5.19206132,155.09,155.06,0.68]
[1762464375265,5.19206132,155.07,155.06,0.68]
[1762464375576,5.19206132,155.07,155.05,7.54]
[1762464375739,5.19206132,155.06,155.05,8.22]
[1762464376539,5.19206132,155.06,155.05,0.68]
[1762464376739,5.19206132,155.06,155.05,8.22]
[1762464377665,5.19206132,155.06,155.05,7.54]
[1762464380773,5.19206132,155.06,155.05,8.22]
[1762464381355,5.91206132,155.06,155.04,0.2]
[1762464381557,5.19206132,155.05,155.04,0.2]
[1762464381754,21.312,155.06,155.04,0.2]
[1762464381942,5.19206132,155.05,155.04,0.2]
[1762464384648,5.88206132,155.05,155.04,0.2]
[1762464384980,20.592,155.02,154.96,7.54]
[1762464385185,20.592,155.02,154.97,0.69]
[1762464385354,20.592,155.0,154.96,7.54]
[1762464385751,0.69,154.99,154.96,7.54]
[1762464386376,5.19206132,154.97,154.96,7.54]
[1762464386782,5.19206132,154.97,154.95,0.69]
[1762464387078,25.78406132,154.96,154.93,0.69]
[1762464387252,5.19206132,154.95,154.93,0.69]
[1762464388143,5.19206132,154.94,154.93,0.69]
[1762464388752,0.80613955,155.06,154.93,0.69]
[1762464388753,20.592,154.98,154.93,0.69]
[1762464388946,5.19206132,154.96,154.93,0.69]
[1762464389146,5.19206132,154.96,154.93,7.14449318]
[1762464389487,5.19206132,154.99,154.94,59.78882769]
[1762464389646,5.19206132,155.0,154.94,60.47882769]
[1762464389850,5.19206132,154.98,154.95,0.69]
[1762464390067,5.19206132,154.97,154.96,7.54]
[1762464390558,5.19206132,154.98,154.96,8.23]
[1762464391049,5.19206132,154.98,154.97,0.69]
[1762464392573,5.19206132,155.01,154.97,0.69]
[1762464392965,5.19206132,155.01,154.97,7.14267724]
[1762464393159,5.19206132,155.03,154.98,0.69]
[1762464394294,5.0875183,155.1,154.99,9.78882769]
[1762464394581,5.19206132,155.05,155.01,9.78882769]
[1762464394885,5.19206132,155.05,155.02,0.69]
[1762464395086,5.19206132,155.05,155.01,9.78882769]
[1762464395251,5.19206132,155.05,155.02,0.69]
[1762464395453,5.19206132,155.04,155.02,0.69]
[1762464396071,5.19206132,155.05,155.02,0.69]
[1762464396661,5.19206132,155.05,155.0,14.68151351]
[1762464396866,5.19206132,155.05,155.01,0.69]
[1762464397103,20.592,155.1,155.01,16.93001187]
[1762464397400,20.592,155.1,155.05,20.592]
[1762464397401,5.19206132,155.1,155.05,20.592]
[1762464397684,5.19206132,155.1,155.06,8.23]
[1762464397855,5.19206132,155.11,155.06,8.23]
[1762464398055,5.19206132,155.11,155.07,0.69]
[1762464398265,5.19206132,155.1,155.07,0.69]
[1762464399571,5.19206132,155.11,155.07,0.69]
[1762464399975,5.19206132,155.1,155.07,0.69]
[1762464400170,21.262,155.13,155.07,0.69]
[1762464400171,5.19206132,155.12,155.07,7.13867599]
[1762464400374,5.19206132,155.12,155.08,0.69]
[1762464401496,5.19206132,155.1,155.08,0.69]
[1762464401663,5.19206132,155.09,155.05,0.69]
[1762464401863,5.19206132,155.08,155.06,7.54]
[1762464402289,5.19206132,155.08,155.07,0.69]
[1762464403115,5.19206132,155.08,155.07,8.23]
[1762464409502,5.19206132,155.09,155.07,8.23]
[1762464409685,5.19206132,155.09,155.08,0.69]
[1762464410284,5.19206132,155.09,155.07,7.54]
[1762464410499,0.67,155.13,155.08,0.69]
[1762464410712,0.67,155.12,155.09,7.54]
[1762464410917,0.67,155.12,155.08,7.54]
[1762464411294,0.67,155.12,155.08,8.23]
[1762464411699,5.19206132,155.09,155.08,8.23]
[1762464413704,20.592,155.13,155.08,8.23]
[1762464414011,5.19206132,155.09,155.08,7.54]
[1762464414417,5.19206132,155.09,155.08,8.21]
[1762464415784,5.19206132,155.1,155.08,8.21]
[1762464415992,5.19206132,155.1,155.09,0.67]
[1762464416218,7.54,155.19,155.09,0.67]
[1762464416398,5.19206132,155.12,155.09,0.67]
[1762464416591,5.19206132,155.12,155.09,7.11761907]
[1762464417106,5.19206132,155.12,155.1,0.67]
[1762464417308,5.19206132,155.16,155.11,7.54]
[1762464417509,5.19206132,155.12,155.11,7.54]
[1762464418093,5.19206132,155.12,155.11,8.21]
[1762464418507,0.65,155.21,155.12,6.44662197]
[1762464418696,5.19206132,155.15,155.12,7.11662197]
[1762464418902,5.19206132,155.15,155.13,0.67]
[1762464419107,21.242,155.2,155.14,7.54]
[1762464419720,21.242,155.2,155.15,0.67]
[1762464419721,20.592,155.2,155.15,0.67]
[1762464420311,5.19206132,155.16,155.15,0.67]
[1762464421192,5.19206132,155.17,155.15,0.67]
[1762464421613,0.2,155.23,155.15,7.11529758]
[1762464421614,5.19206132,155.19,155.15,7.11529758]
[1762464422133,5.19206132,155.2,155.16,60.45882769]
[1762464422296,8.14958111,155.2,155.17,8.21]
[1762464422729,8.14958111,155.2,155.18,0.67]
[1762464423023,8.14958111,155.2,155.18,7.11408887]
[1762464423318,8.14958111,155.2,155.18,0.67]
[1762464423490,8.14958111,155.2,155.19,0.67]
[1762464424506,8.14958111,155.2,155.16,0.67]
[1762464424820,8.14958111,155.21,155.17,7.54]
[1762464425016,8.14958111,155.21,155.17,8.21]
[1762464425215,8.79958111,155.21,155.17,7.54]
[1762464425426,8.14958111,155.21,155.17,7.54]
[1762464425618,8.14958111,155.21,155.18,0.67]
[1762464425816,20.592,155.22,155.18,0.67]
[1762464426125,8.14958111,155.2,155.18,0.67]
[1762464427407,8.14958111,155.19,155.18,7.54]
[1762464430399,8.14958111,155.19,155.18,8.21]
[1762464430627,0.2,155.23,155.18,8.21]
[1762464430628,8.14958111,155.2,155.18,8.21]
[1762464430837,8.14958111,155.2,155.19,0.67]
[1762464431528,0.2,155.23,155.19,78.80254184]
[1762464431721,0.2,155.23,155.2,9.78882769]
[1762464432039,0.2,155.23,155.22,9.78882769]
[1762464432330,0.2,155.25,155.22,10.45882769]
[1762464432533,0.2,155.25,155.23,0.67]
[1762464432706,0.2,155.25,155.24,7.54]
[1762464433104,0.2,155.25,155.24,8.21]
[1762464435321,0.2,155.25,155.24,70.11]
[1762464435518,0.2,155.25,155.24,240.65004755]
[1762464435725,0.2,155.25,155.24,248.19004755]
[1762464435940,8.14958111,155.31,155.26,70.592]
[1762464436237,0.2,155.33,155.28,17.9384088]
[1762464436442,8.34958111,155.33,155.28,67.9384088]
[1762464436608,0.2,155.33,155.29,0.67]
[1762464436809,8.34958111,155.33,155.3,7.54]
[1762464437212,8.34958111,155.33,155.31,0.67]
[1762464437623,0.2,155.33,155.31,0.67]
[1762464439028,0.2,155.33,155.32,67.9384088]
[1762464439210,8.14958111,155.39,155.35,9.78882769]
[1762464439410,8.14958111,155.39,155.36,7.54]
[1762464439605,8.14958111,155.4,155.37,0.67]
[1762464440235,8.14958111,155.4,155.38,7.54]
[1762464440638,0.2,155.41,155.38,7.54]
[1762464440639,8.34958111,155.41,155.39,0.67]
[1762464440849,0.2,155.41,155.39,21.262]
[1762464441046,0.2,155.41,155.4,9.78882769]
[1762464441344,0.2,155.41,155.4,10.45882769]
[1762464441531,0.2,155.41,155.4,16.89383412]
[1762464441839,0.2,155.41,155.4,10.45882769]
[1762464444123,0.2,155.41,155.4,16.89383412]
[1762464444324,0.2,155.41,155.4,10.45882769]
[1762464444720,0.2,155.41,155.4,16.89383412]
[1762464444938,0.2,155.41,155.4,68.6084088]
[1762464445241,0.2,155.41,155.4,75.04341523]
[1762464446558,0.2,155.41,155.4,10.45882769]
[1762464447421,0.2,155.41,155.4,25.04341523]
[1762464447636,0.2,155.41,155.4,186.94341523]
[1762464448438,0.2,155.41,155.4,194.46341523]
[1762464448833,0.1,155.45,155.43,61.9]
[1762464449042,0.1,155.45,155.44,75.4584088]
[1762464449248,0.1,155.45,155.44,76.1184088]
[1762464449428,0.1,155.45,155.44,144.45175928]
[1762464450033,0.1,155.45,155.44,146.45175927]
[1762464451634,0.1,155.45,155.44,84.55175927]
[1762464451843,0.1,155.53,155.49,9.78882769]
[1762464452027,8.24958111,155.53,155.5,7.52]
[1762464452231,0.1,155.53,155.51,0.66]
[1762464452430,0.1,155.53,155.52,7.52]
[1762464452954,0.1,155.53,155.52,8.18]
[1762464455656,0.1,155.53,155.52,21.252]
[1762464455959,0.1,155.53,155.52,28.772]
[1762464457358,0.1,155.53,155.52,53.14044995]
[1762464457659,0.1,155.53,155.52,44.99086884]
[1762464459054,0.1,155.53,155.52,53.14044995]
[1762464459636,0.1,155.53,155.52,94.99086884]
[1762464459854,0.1,155.53,155.52,105.14044994]
[1762464460159,0.1,155.53,155.52,97.62044994]
[1762464460334,1e-08,155.53,155.52,105.14044994]
[1762464460746,0.1,155.54,155.53,61.78882768]
[1762464460945,0.1,155.55,155.54,61.78882768]
[1762464461140,0.1,155.55,155.54,86.3079899]
[1762464461561,0.1,155.55,155.54,80.73083877]
[1762464461767,0.1,155.55,155.54,87.16005312]
[1762464462357,0.1,155.55,155.54,95.30963423]
[1762464462945,0.1,155.56,155.55,61.78882768]
[1762464463156,0.1,155.56,155.55,70.63840879]
[1762464463764,0.1,155.56,155.55,77.06720981]
[1762464465368,0.1,155.56,155.55,84.58720981]
[1762464465771,0.1,155.57,155.55,84.58720981]
[1762464466070,0.1,155.57,155.56,70.63840879]
[1762464466262,0.1,155.64,155.57,69.93840879]
[1762464466466,0.1,155.64,155.57,78.15840879]
[1762464466652,0.1,155.64,155.57,70.63840879]
[1762464466853,0.1,155.64,155.57,78.15840879]
[1762464467182,0.8,155.64,155.57,68.00882769]
[1762464467364,0.1,155.64,155.57,76.1584088]
[1762464467752,0.8,155.62,155.57,10.48882769]
[1762464467968,0.8,155.62,155.57,74.43680223]
[1762464468159,0.1,155.62,155.57,82.58638334]
[1762464468864,0.1,155.62,155.57,68.6384088]
[1762464469049,0.1,155.62,155.57,76.1584088]
[1762464469050,0.8,155.62,155.57,76.1584088]
[1762464469251,0.8,155.62,155.57,26.1584088]
[1762464469951,0.8,155.59,155.57,17.30882769]
[1762464470167,0.1,155.59,155.57,17.30882769]
[1762464470570,0.1,155.59,155.57,20.592]
[1762464470872,0.1,155.59,155.57,28.112]
[1762464471243,0.8,155.58,155.57,20.592]
[1762464471456,0.8,155.58,155.57,28.112]
[1762464471673,0.8,155.58,155.57,20.592]
[1762464471847,8.94958111,155.58,155.57,20.592]
[1762464472171,8.94958111,155.58,155.57,28.112]
[1762464473170,8.94958111,155.58,155.57,7.52]
[1762464473356,8.94958111,155.58,155.52,8.14958111]
[1762464473674,8.80958111,155.57,155.53,37.90082769]
[1762464473978,0.1,155.58,155.51,8.14958111]
[1762464473979,8.14958111,155.55,155.51,9.78882769]
[1762464474149,8.14958111,155.55,155.52,7.52]
[1762464474475,8.14958111,155.55,155.53,20.592]
[1762464474476,0.66,155.54,155.53,20.592]
[1762464474774,0.66,155.54,155.53,28.112]
[1762464475069,0.66,155.56,155.53,28.112]
[1762464475775,8.80958111,155.56,155.53,28.112]
[1762464476164,0.66,155.55,155.53,28.112]
[1762464476770,0.66,155.55,155.53,20.592]
[1762464476944,0.66,155.55,155.54,7.52]
[1762464477150,8.80958111,155.55,155.54,7.52]
[1762464477371,8.80958111,155.55,155.53,20.592]
[1762464477668,0.1,155.58,155.54,7.52]
[1762464478052,0.66,155.57,155.54,7.52]
[1762464478873,8.80958111,155.57,155.54,7.52]
[1762464479254,0.66,155.56,155.54,7.52]
[1762464479677,0.1,155.58,155.55,8.14958111]
[1762464479854,0.1,155.58,155.56,7.52]
[1762464480257,0.57,155.57,155.56,7.52]
[1762464480667,0.1,155.58,155.56,52.47879656]
[1762464480868,0.1,155.58,155.57,67.9384088]
[1762464481074,0.1,155.58,155.57,118.5984088]
[1762464482373,0.1,155.58,155.57,122.0328211]
[1762464483157,0.1,155.58,155.57,73.12484656]
[1762464483359,0.1,155.58,155.57,79.5528211]
[1762464484060,0.1,155.58,155.57,129.5528211]
[1762464484778,0.1,155.58,155.57,128.8928211]
[1762464485176,0.1,155.58,155.57,78.8928211]
[1762464485357,0.1,155.58,155.57,71.3728211]
[1762464485558,0.1,155.58,155.57,28.8928211]
[1762464485772,0.1,155.58,155.57,22.46484656]
[1762464485979,0.1,155.58,155.57,78.8928211]
[1762464486556,0.1,155.58,155.57,99.4848211]
[1762464488670,0.67,155.58,155.57,99.4848211]
[1762464488864,0.1,155.58,155.57,99.4848211]
[1762464489784,0.67,155.58,155.57,35.53684656]
[1762464490079,0.67,155.58,155.57,33.26801887]
[1762464490285,0.67,155.58,155.57,12.67601887]
[1762464490506,0.67,155.58,155.57,7.52]
[1762464490857,5.82601887,155.58,155.57,7.52]
[1762464491189,0.1,155.58,155.57,78.8928211]
[1762464491677,0.67,155.58,155.57,22.46484656]
[1762464492183,0.67,155.58,155.54,50.0]
[1762464492487,0.67,155.58,155.57,5.15601887]
[1762464492663,0.67,155.58,155.57,12.67601887]
[1762464493071,0.1,155.58,155.57,22.46484656]
[1762464493275,0.1,155.58,155.57,72.46484656]
[1762464493474,0.1,155.58,155.57,73.12484656]
[1762464494366,0.1,155.58,155.57,126.5965429]
[1762464495254,0.1,155.59,155.57,126.5965429]
[1762464495457,0.1,155.59,155.58,16.84830902]
[1762464495675,0.1,155.61,155.6,50.0]
[1762464495885,0.1,155.61,155.6,82.51148134]
[1762464496076,0.1,155.61,155.6,83.17148134]
[1762464496464,0.1,155.61,155.6,88.93821655]
[1762464498005,0.1,155.61,155.6,86.73847588]
[1762464498200,0.1,155.61,155.6,30.31174067]
[1762464498872,0.1,155.61,155.6,36.73847588]
[1762464499397,0.1,155.61,155.6,88.93821655]
[1762464499602,0.1,155.61,155.6,89.59821655]
[1762464500472,0.1,155.61,155.6,88.93821655]
[1762464500679,0.1,155.64,155.62,61.7]
[1762464501000,0.1,155.64,155.63,9.71974067]
[1762464501383,0.67,155.64,155.63,9.71974067]
[1762464501586,0.1,155.64,155.63,81.20856836]
[1762464501987,0.1,155.64,155.63,79.00882769]
[1762464502175,0.67,155.64,155.63,79.00882769]
[1762464502576,0.67,155.64,155.63,69.2]
[1762464502786,0.67,155.64,155.63,71.39974067]
[1762464503183,0.67,155.64,155.63,61.7]
[1762464503369,0.67,155.64,155.63,69.2]
[1762464503573,2.86974067,155.64,155.63,7.5]
[1762464504279,2.86974067,155.64,155.58,0.1677]
[1762464504609,0.57,155.63,155.59,7.5]
[1762464504975,2.19974067,155.62,155.59,7.5]
[1762464505385,0.57,155.61,155.59,7.5]
[1762464508695,2.76974067,155.61,155.59,7.5]
[1762464509194,0.57,155.6,155.59,7.5]
[1762464511586,0.57,155.63,155.59,7.5]
[1762464511781,0.57,155.63,155.59,9.69974067]
[1762464511982,0.57,155.63,155.59,16.12686839]
[1762464512187,0.57,155.63,155.59,13.92712772]
[1762464512800,0.57,155.63,155.59,16.12686839]
[1762464513175,0.57,155.63,155.6,2.19974067]
[1762464513372,0.57,155.63,155.59,9.69974067]
[1762464513597,2.76974067,155.63,155.59,7.5]
[1762464514100,0.1,155.64,155.59,9.69974067]
[1762464514312,0.57,155.62,155.59,9.69974067]
[1762464514995,0.57,155.62,155.59,16.12686741]
[1762464515192,0.57,155.62,155.59,2.19974067]
[1762464515392,0.57,155.62,155.58,0.1677]
[1762464515393,2.19974067,155.6,155.58,0.1677]
[1762464515584,2.19974067,155.6,155.59,7.5]
[1762464515789,2.19974067,155.6,155.59,6.93]
[1762464517523,22.79174067,155.6,155.59,6.93]
[1762464517884,24.99148134,155.6,155.58,0.1677]
[1762464518105,2.19974067,155.59,155.58,0.1677]
[1762464518305,5.16454599,155.59,155.58,0.1677]
[1762464518534,25.75654599,155.59,155.58,0.1677]
[1762464518678,5.16454599,155.59,155.58,0.1677]
[1762464519084,14.95337368,155.59,155.58,0.1677]
[1762464519581,41.97252195,155.59,155.58,0.1677]
[1762464519783,21.38052195,155.59,155.58,0.1677]
[1762464520914,25.75654599,155.59,155.58,0.1677]
[1762464522179,20.592,155.59,155.58,0.1677]
[1762464522386,25.75654599,155.59,155.58,0.1677]
[1762464524512,20.592,155.56,155.48,0.71]
[1762464524692,5.16454599,155.52,155.48,0.71]
[1762464525812,17.30882769,155.59,155.48,0.71]
[1762464526030,5.16454599,155.53,155.48,0.71]